[Event "Valenciana Championship 2022"]
[Site "Alcossebre"]
[Date "2022.06.13"]
[Round "3.4"]
[White "Navarro Molina, Carmelo Jose"]
[Black "Luque Saiz, Andres"]
[Result "0-1"]
[ECO "D11"]
[WhiteElo "1834"]
[BlackElo "2273"]
[Annotator "TA"]
[PlyCount "128"]
[EventDate "2022.06.13"]
[EventType "tourn"]
[EventCountry "ESP"]
[SourceTitle "playchess.com"]
[Source "ChessBase"]
[SourceQuality "1"]
[TimeControl "5400+30"]

{[%evp 9,128,-36,20,21,19,-19,-25,-20,-21,-87,-51,-59,-61,-77,-64,-64,-64,-66,-69,-62,-62,-114,-76,-167,-172,-154,-142,-169,-94,-89,-64,-77,-79,-76,-70,-124,-90,-85,-76,-212,-204,-201,-202,-231,-240,-236,-222,-249,-176,-172,-104,-179,-156,-146,-135,-145,-149,-135,-136,-120,-110,-115,-108,-110,-110,-111,-110,-116,-66,-65,-58,-59,-6,-6,0,0,0,-62,-20,-45,0,-8,0,-8,-8,-8,-8,-27,-8,-8,-8,-8,0,0,0,-206,-191,-167,-136,-557,-538,-656,-611,-581,-562,-531,0,0,0,0,0,0,0,-29975,-29976,-29976,-29977,-29977,-29978,-29978,-29979]} 1. d4 {[%emt 0:00:05]} d5 {[%emt 0:00:07]} 2. c4 {[%emt 0:00:05]} c6 {[%emt 0:00:03]} 3. Nf3 {[%emt 0:00:05]} Nf6 {[%emt 0:00:04]} 4. g3 {[%emt 0:00:05]} dxc4 {[%emt 0:03:47]} 5. Ne5 {[%emt 0:00:39]} g6 {[%emt 0:06:05]} (5... Ng4 $15) 6. Bg2 $11 {[%emt 0:00:29][%mdl 1024] White has compensation. D11: Slav Defence: 3 Nf3 sidelines and 3...Nf6 4 e3 Bg4.} Be6 {[%emt 0:02:07] [#]} 7. a4 $146 {[%emt 0:05:10]} ({Predecessor:} 7. Na3 Bg7 8. Nexc4 O-O 9. O-O Qc8 10. Qc2 Bh3 11. Rd1 Bxg2 12. Kxg2 Rd8 13. e4 {1-0 (31) Ipatov,A (2659)-Baryshpolets,A (2592) Columbus 2017}) 7... Nbd7 {[%emt 0:04:23]} 8. Nf3 {[%emt 0:05:55] Black has an edge.} Bd5 {[%emt 0:13:46]} 9. Na3 {[%emt 0:03:47]} (9. Nc3 $11 {remains equal.}) 9... a5 {[%emt 0:01:59]} 10. O-O {[%emt 0:00:59]} Bg7 {[%emt 0:01:35]} 11. e3 {[%emt 0:00:46]} Qb8 {[%emt 0:04:58]} 12. Nd2 {[%emt 0:01:14]} Bxg2 {[%emt 0:00:43]} 13. Kxg2 {[%emt 0:00:24]} b5 {[%emt 0:00:08]} 14. Qf3 {[%emt 0:01:52]} Ra6 {[%emt 0:00:40]} 15. Ne4 {[%emt 0:02:50]} (15. e4 $15) 15... O-O {[%emt 0:06:00]} 16. Bd2 {[%emt 0:00:24]} (16. Nxf6+ $17 {was worth a try.} Nxf6 17. e4) 16... Nxe4 $19 {[%emt 0:09:24]} 17. Qxe4 {[%emt 0:00:15]} Nf6 {[%emt 0:00:12][%cal Bd7f6,Bf6e8,Be8d6][%mdl 32]} 18. Qf3 {[%emt 0:00:36]} e6 {[%emt 0:01:15]} (18... e5 $19 19. axb5 cxb5 20. dxe5 Nd7) 19. e4 $17 {[%emt 0:04:58]} Ne8 {[%emt 0:14:26]} 20. Be3 {[%emt 0:00:43]} Nd6 {[%emt 0:01:04]} 21. Rfc1 {[%emt 0:02:36]} Rd8 {[%emt 0:00:44]} 22. Rab1 {[%emt 0:01:33]} ({White should play} 22. Rd1 $15) 22... Ne8 {[%emt 0:03:42]} 23. Rd1 {[%emt 0:00:44]} Qb7 {[%emt 0:01:16]} 24. d5 {[%emt 0:08:11]} (24. h4 $17) 24... exd5 $19 {[%emt 0:05:01]} (24... cxd5 25. axb5 dxe4 26. Qe2 $17) 25. exd5 {[%emt 0:00:10]} cxd5 {[%emt 0:00:27] And now ...Rf6 would win.} 26. Kg1 {[%emt 0:07:17]} bxa4 {[%emt 0:09:47]} 27. Nxc4 {[%emt 0:00:22]} Rd7 {[%emt 0:00:20]} 28. Na3 {[%emt 0:03:15]} Qb3 {[%emt 0:05:10] Inhibits Rd3.} ({Don't do} 28... Bxb2 29. Qe2 $18) 29. Qe2 {[%emt 0:03:02]} Rc6 {[%emt 0:02:10]} (29... Re6 $19 {...d4 is the strong threat.} 30. Qb5 Ree7) 30. Bd4 {[%emt 0:05:19]} (30. Rd3 $17 Qb7 31. b3) 30... Re6 {[%emt 0:00:54]} 31. Qb5 {[%emt 0:00:44]} Qxb5 {[%emt 0:02:59]} 32. Nxb5 {[%emt 0:00:06]} Rb7 {[%emt 0:00:13]} 33. Bxg7 {[%emt 0:00:48]} Rxb5 {[%emt 0:00:18]} ({Weaker is} 33... Nxg7 34. Rxd5 Nf5 35. Na3 $17) 34. Bc3 {[%emt 0:02:01]} Nd6 {[%emt 0:01:06]} 35. Ra1 {[%emt 0:03:01]} Re4 {[%emt 0:00:22]} 36. Rd4 {[%emt 0:02:40]} Rxd4 {[%emt 0:00:22]} 37. Bxd4 $17 {[%emt 0:00:02][%mdl 4096] Endgame KRB-KRN} Nf5 {[%emt 0:00:22]} 38. Bf6 {[%emt 0:01:36] [#]} Kf8 {[%emt 0:00:54]} (38... Rb4 $1 $17 39. Rc1 Rc4 40. Rxc4 dxc4) 39. Rxa4 $15 {[%emt 0:00:02][%cal Ob2b4]} Ke8 {[%emt 0:00:14]} 40. Bc3 {[%emt 0:00:09]} Kd7 {[%emt 0:00:23]} (40... d4 $1 $15 41. Bxa5 Rxb2) 41. Rxa5 $11 {[%emt 0:00:05]} Rxa5 {[%emt 0:00:28]} 42. Bxa5 {[%emt 0:00:28] KB-KN} Kc6 {[%emt 0:00:15]} 43. g4 {[%emt 0:07:33]} (43. Kf1 $11) 43... Nd6 $15 {[%emt 0:00:45] White must now prevent ...Kc5.} 44. Kf1 $1 {[%emt 0:01:32]} Kb5 {[%emt 0:00:58]} (44... d4 $5 {[%cal Rd6c4]}) 45. Bd2 {[%emt 0:05:43]} Kc4 {[%emt 0:00:29] Hoping for ...Kd3.} 46. Bf4 {[%emt 0:04:41]} Nb5 {[%emt 0:00:31] Threatens to win with ...Kd3.} 47. Ke2 {[%emt 0:02:37]} Nd4+ {[%emt 0:00:04]} 48. Ke3 {[%emt 0:01:21]} Ne6 {[%emt 0:00:34] Strongly threatening ...d4+.} 49. Be5 {[%emt 0:00:07]} d4+ {[%emt 0:00:48]} 50. Kd2 $1 {[%emt 0:00:47]} Nc5 {[%emt 0:00:32]} 51. f3 {[%emt 0:03:52] Inhibits Ne4+.} Nb3+ {[%emt 0:00:33]} 52. Kd1 $2 {[%emt 0:00:53] [#]} (52. Kc2 $11 {and White has nothing to worry.}) 52... Kd3 $1 $19 {[%emt 0:00:20]} 53. Bf4 {[%emt 0:00:22]} f6 {[%emt 0:00:31][%cal Bf7f6,Bf6f5][%mdl 32]} 54. h4 $2 {[%emt 0:00:13][%mdl 8192]} (54. Bh6 $17) 54... h5 {[%emt 0:00:36]} 55. gxh5 {[%emt 0:00:48]} gxh5 {[%emt 0:00:03]} 56. Bh6 {[%emt 0:00:39]} f5 {[%emt 0:01:33]} 57. Bg5 {[%emt 0:00:32]} Na1 $2 {[%emt 0:00:00]} (57... Nc5 $19 58. b4 Na4) 58. Bf4 $11 {[%emt 0:01:47]} Nc2 {[%emt 0:00:15]} 59. Bd2 {[%emt 0:00:54] Against Nb4} Ne3+ {[%emt 0:00:41]} 60. Bxe3 {[%emt 0:00:34]} dxe3 {[%emt 0:00:02]} (60... Kxe3 $2 61. b4 Kf4 62. Ke2 $18) 61. b4 $2 {[%emt 0:00:39][%mdl 8192]} (61. f4 $11) 61... Kc4 {[%emt 0:00:03] Black mates.} ({Don't play} 61... f4 62. b5 e2+ 63. Ke1 Ke3 64. b6 Kxf3 65. b7 Ke3 66. b8=Q) 62. f4 {[%emt 0:00:11]} Kxb4 {[%emt 0:00:05]} 63. Ke2 {[%emt 0:00:04]} Kc4 {[%emt 0:00:07]} 64. Kxe3 {[%emt 0:00:16]} Kc3 {[%emt 0:00:03] Weighted Error Value: White=0.48/Black=0.19 (very precise)} 0-1

[Event "Valenciana Championship 2022"]
[Site "Alcossebre"]
[Date "2022.06.14"]
[Round "4.1"]
[White "Cruz Lledo, Pablo"]
[Black "Luque Saiz, Andres"]
[Result "1-0"]
[ECO "D12"]
[WhiteElo "2435"]
[BlackElo "2273"]
[Annotator "RC"]
[PlyCount "155"]
[EventDate "2022.06.13"]
[EventType "tourn"]
[EventCountry "ESP"]
[SourceTitle "playchess.com"]
[Source "ChessBase"]
[SourceQuality "1"]
[TimeControl "5400+30"]

1. d4 {[%emt 0:00:04]} d5 {[%emt 0:00:25]} 2. c4 {[%emt 0:00:04]} c6 {[%emt 0:00:06]} 3. Nf3 {[%emt 0:00:05]} Nf6 {[%emt 0:00:09]} 4. e3 {[%emt 0:00:04]} Bf5 {[%emt 0:00:28]} 5. cxd5 {[%emt 0:00:05]} cxd5 {[%emt 0:00:58]} 6. Qb3 {[%emt 0:00:05]} Qc7 {[%emt 0:03:31]} 7. Bd2 {[%emt 0:00:10]} e6 {[%emt 0:01:20]} 8. Bb5+ {[%emt 0:00:04]} Nc6 {[%emt 0:01:21]} 9. O-O {[%emt 0:00:07]} Bd6 {[%emt 0:01:33]} 10. Bb4 {[%emt 0:00:06]} O-O {[%emt 0:01:28]} 11. Bxc6 {[%emt 0:00:05]} bxc6 {[%emt 0:06:16]} 12. Nbd2 {[%emt 0:00:07]} Rab8 {[%emt 0:06:54]} 13. Bxd6 {[%emt 0:00:06]} Qxd6 {[%emt 0:00:04]} 14. Qc3 {[%emt 0:00:07]} Qb4 {[%emt 0:13:40]} 15. Qxb4 {[%emt 0:02:56]} Rxb4 {[%emt 0:00:11]} 16. b3 {[%emt 0:04:03]} Nd7 {[%emt 0:00:59]} 17. Rfc1 {[%emt 0:00:28]} Rc8 {[%emt 0:00:27]} 18. Rc3 {[%emt 0:00:15]} f6 {[%emt 0:01:11]} 19. a3 {[%emt 0:03:03]} Rb6 {[%emt 0:03:04]} 20. b4 {[%emt 0:00:25]} Kf8 {[%emt 0:02:01]} 21. Nb3 {[%emt 0:00:14]} Ke7 {[%emt 0:00:25]} 22. Nfd2 {[%emt 0:06:28]} Kd6 {[%emt 0:04:19]} 23. Rac1 {[%emt 0:01:36]} Bg6 {[%emt 0:02:36]} 24. Na5 {[%emt 0:02:08]} Nb8 {[%emt 0:04:39]} 25. Ndb3 {[%emt 0:00:47]} Be8 {[%emt 0:02:31]} 26. f3 {[%emt 0:10:34]} Bd7 {[%emt 0:06:16]} 27. Kf2 {[%emt 0:01:11]} Re8 {[%emt 0:02:45]} 28. Rd1 {[%emt 0:00:57]} Rc8 {[%emt 0:05:56]} 29. e4 {[%emt 0:00:36]} Rc7 {[%emt 0:03:07]} 30. f4 {[%emt 0:01:23]} Rc8 {[%emt 0:04:19]} 31. Rg3 {[%emt 0:01:39]} g6 {[%emt 0:02:24]} 32. e5+ {[%emt 0:01:52]} fxe5 {[%emt 0:00:06]} 33. fxe5+ {[%emt 0:00:16]} Ke7 {[%emt 0:00:21]} 34. Rf3 {[%emt 0:01:26]} Na6 {[%emt 0:01:11]} 35. Ke3 {[%emt 0:00:42]} Rf8 {[%emt 0:03:14]} 36. Rdf1 {[%emt 0:03:21]} Rxf3+ {[%emt 0:01:39]} 37. Rxf3 {[%emt 0:00:02]} Rb8 {[%emt 0:00:45]} 38. Rh3 {[%emt 0:00:15]} Rh8 {[%emt 0:01:22]} 39. Nb7 {[%emt 0:01:35]} Nc7 {[%emt 0:00:59]} 40. Nd6 {[%emt 0:00:18]} Ne8 {[%emt 0:08:01]} 41. Nxe8 {[%emt 0:00:22]} Bxe8 {[%emt 0:00:06]} 42. Nc5 {[%emt 0:02:47]} g5 {[%emt 0:00:44]} 43. Rf3 {[%emt 0:04:38]} Bg6 {[%emt 0:01:05]} 44. Rf6 {[%emt 0:00:22]} Bf5 {[%emt 0:00:30]} 45. h3 {[%emt 0:03:43]} h5 {[%emt 0:00:42]} 46. Nb7 {[%emt 0:00:49]} Rg8 {[%emt 0:03:03]} 47. Na5 {[%emt 0:02:21]} Rc8 {[%emt 0:00:28]} 48. Rh6 {[%emt 0:01:00]} Kf7 {[%emt 0:02:36]} 49. Nb7 {[%emt 0:00:49]} Kg7 {[%emt 0:02:06]} 50. Rf6 {[%emt 0:02:19]} Rf8 {[%emt 0:00:37]} 51. Rxf8 {[%emt 0:00:32]} Kxf8 {[%emt 0:00:03]} 52. Nd8 {[%emt 0:00:46]} a6 {[%emt 0:00:35]} 53. Nxc6 {[%emt 0:00:40]} Be4 {[%emt 0:00:36]} 54. g3 {[%emt 0:00:37]} h4 {[%emt 0:00:24]} 55. gxh4 {[%emt 0:00:08]} gxh4 {[%emt 0:00:03]} 56. Kf4 {[%emt 0:00:22]} Bf5 {[%emt 0:00:24]} 57. Kg5 {[%emt 0:00:21]} Bxh3 {[%emt 0:00:05]} 58. Kxh4 {[%emt 0:00:04]} Bf1 {[%emt 0:00:20]} 59. Kg5 {[%emt 0:00:03]} Kf7 {[%emt 0:00:12]} 60. Nd8+ {[%emt 0:04:05]} Ke7 {[%emt 0:00:08]} 61. Nb7 {[%emt 0:00:02]} Bb5 {[%emt 0:01:12]} 62. Kg6 {[%emt 0:00:13]} Bd3+ {[%emt 0:00:18]} 63. Kg7 {[%emt 0:00:07]} Bb5 {[%emt 0:00:27]} 64. Nc5 {[%emt 0:02:06]} Bc4 {[%emt 0:00:04]} 65. Nb7 {[%emt 0:03:48]} Bb5 {[%emt 0:00:57]} 66. Nd6 {[%emt 0:00:07]} Bd7 {[%emt 0:00:13]} 67. Nf7 {[%emt 0:00:22]} Be8 {[%emt 0:01:09]} 68. Nh8 {[%emt 0:00:23]} Bh5 {[%emt 0:01:44]} 69. Ng6+ {[%emt 0:01:58]} Ke8 {[%emt 0:00:04]} 70. Nf4 {[%emt 0:01:18]} Bg4 {[%emt 0:00:14]} 71. Kf6 {[%emt 0:00:05]} Kd7 {[%emt 0:00:03]} 72. Nd3 {[%emt 0:01:06]} Kc6 {[%emt 0:00:47]} 73. Nc5 {[%emt 0:00:02]} Kb5 {[%emt 0:00:36]} 74. Nxe6 {[%emt 0:00:09]} Kc4 {[%emt 0:00:04]} 75. Nc5 {[%emt 0:00:54]} Kxd4 {[%emt 0:01:34]} 76. Nxa6 {[%emt 0:00:13]} Kc4 {[%emt 0:00:23]} 77. Nc5 {[%emt 0:00:23]} d4 {[%emt 0:00:51]} 78. e6 {[%emt 0:00:29]} 1-0

[Event "Valenciana Championship 2022"]
[Site "Alcossebre"]
[Date "2022.06.14"]
[Round "4.2"]
[White "Macias Pino, Diego"]
[Black "Navarro Molina, Carmelo Jose"]
[Result "1-0"]
[ECO "B23"]
[WhiteElo "2365"]
[BlackElo "1834"]
[Annotator "RC"]
[PlyCount "81"]
[EventDate "2022.06.13"]
[EventType "tourn"]
[EventCountry "ESP"]
[SourceTitle "playchess.com"]
[Source "ChessBase"]
[SourceQuality "1"]
[TimeControl "5400+30"]

1. e4 {[%emt 0:00:37]} c5 {[%emt 0:00:05]} 2. Nc3 {[%emt 0:00:24]} Nc6 {[%emt 0:00:06]} 3. Bb5 {[%emt 0:00:12]} Nd4 {[%emt 0:00:25]} 4. Nf3 {[%emt 0:00:32]} a6 {[%emt 0:01:13]} 5. Bd3 {[%emt 0:00:35]} g6 {[%emt 0:01:54]} 6. Nxd4 {[%emt 0:00:18]} cxd4 {[%emt 0:00:04]} 7. Ne2 {[%emt 0:00:13]} Bg7 {[%emt 0:00:12]} 8. c3 {[%emt 0:00:14]} dxc3 {[%emt 0:00:20]} 9. dxc3 {[%emt 0:00:02]} d6 {[%emt 0:00:07]} 10. O-O {[%emt 0:00:56]} Nf6 {[%emt 0:00:30]} 11. c4 {[%emt 0:01:39]} O-O {[%emt 0:00:07]} 12. Be3 {[%emt 0:02:48]} Ng4 {[%emt 0:10:54]} 13. Bd4 {[%emt 0:00:13]} Bxd4 {[%emt 0:02:13]} 14. Nxd4 {[%emt 0:00:35]} Ne5 {[%emt 0:00:43]} 15. Be2 {[%emt 0:01:25]} Bd7 {[%emt 0:00:21]} 16. Qd2 {[%emt 0:00:44]} Nc6 {[%emt 0:05:20]} 17. Nc2 {[%emt 0:05:42]} Qb6 {[%emt 0:06:21]} 18. b4 {[%emt 0:04:34]} Be6 {[%emt 0:01:46]} 19. Kh1 {[%emt 0:01:04]} Rac8 {[%emt 0:04:05]} 20. Rac1 {[%emt 0:03:38]} f6 {[%emt 0:03:51]} 21. a3 {[%emt 0:01:15]} Kg7 {[%emt 0:00:18]} 22. h3 {[%emt 0:05:25]} Rfd8 {[%emt 0:04:26]} 23. f4 {[%emt 0:02:40]} Bf7 {[%emt 0:05:32]} 24. Rfd1 {[%emt 0:07:50]} h5 {[%emt 0:12:25]} 25. Ne3 {[%emt 0:05:52]} e6 {[%emt 0:00:34]} 26. Rc3 {[%emt 0:01:53]} Ne7 {[%emt 0:03:29]} 27. Rd3 {[%emt 0:00:29]} Qc7 {[%emt 0:04:55]} 28. Rxd6 {[%emt 0:03:09]} Rxd6 {[%emt 0:00:05]} 29. Qxd6 {[%emt 0:00:14]} Qxd6 {[%emt 0:00:10]} 30. Rxd6 {[%emt 0:00:01]} Rc7 {[%emt 0:00:10]} 31. c5 {[%emt 0:00:36]} Nc8 {[%emt 0:00:56]} 32. Rd8 {[%emt 0:00:23]} Na7 {[%emt 0:01:25]} 33. Nc4 {[%emt 0:01:42]} Nb5 {[%emt 0:00:52]} 34. e5 {[%emt 0:00:20]} Nc3 {[%emt 0:02:32]} 35. Bf3 {[%emt 0:00:49]} Nd5 {[%emt 0:00:07]} 36. g3 {[%emt 0:03:45]} g5 {[%emt 0:02:15]} 37. fxg5 {[%emt 0:00:22]} fxg5 {[%emt 0:00:09]} 38. Nd6 {[%emt 0:00:35]} Kg6 {[%emt 0:02:34]} 39. Rb8 {[%emt 0:01:21]} Nc3 {[%emt 0:01:07]} 40. Rxb7 {[%emt 0:00:41]} Rxb7 {[%emt 0:00:18]} 41. Bxb7 {[%emt 0:00:02]} 1-0

[Event "Valenciana Championship 2022"]
[Site "Alcossebre"]
[Date "2022.06.14"]
[Round "4.3"]
[White "Granero Roca, Antonio"]
[Black "Carbonell Sancho, Marc"]
[Result "0-1"]
[ECO "D87"]
[WhiteElo "2340"]
[BlackElo "2269"]
[Annotator "RC"]
[PlyCount "84"]
[EventDate "2022.06.13"]
[EventType "tourn"]
[EventCountry "ESP"]
[SourceTitle "playchess.com"]
[Source "ChessBase"]
[SourceQuality "1"]
[TimeControl "5400+30"]

1. d4 {[%emt 1:31:00]} Nf6 {[%emt 1:31:00]} 2. c4 {[%emt 0:00:30]} g6 {[%emt 0:00:30]} 3. Nc3 {[%emt 0:00:30]} d5 {[%emt 0:00:30]} 4. cxd5 {[%emt 0:00:30]} Nxd5 {[%emt 0:00:30]} 5. e4 {[%emt 0:00:30]} Nxc3 {[%emt 0:00:30]} 6. bxc3 {[%emt 0:00:30]} Bg7 {[%emt 0:00:30]} 7. Bc4 {[%emt 0:00:30]} c5 {[%emt 0:00:30]} 8. Ne2 {[%emt 0:00:30]} O-O {[%emt 0:00:30]} 9. O-O {[%emt 0:00:30]} Nc6 {[%emt 0:00:30]} 10. Be3 {[%emt 0:00:30]} Na5 {[%emt 0:00:30]} 11. Bd3 {[%emt 0:00:30]} b6 {[%emt 0:00:30]} 12. Qa4 {[%emt 0:00:30]} e5 {[%emt 0:00:30]} 13. Rad1 {[%emt 0:00:30]} Qc7 {[%emt 0:00:30]} 14. dxc5 {[%emt 0:00:00]} bxc5 {[%emt 0:00:00]} 15. c4 {[%emt 0:00:00]} Bd7 {[%emt 0:00:00]} 16. Qa3 {[%emt 0:00:00]} Be6 {[%emt 0:00:00]} 17. Bxc5 {[%emt 0:00:00]} Rfc8 {[%emt 0:00:00]} 18. Bd6 {[%emt 0:00:00]} Nxc4 {[%emt 0:00:00]} 19. Bxc7 {[%emt 0:00:00]} Nxa3 {[%emt 0:00:00]} 20. Rc1 {[%emt 0:00:00]} a6 {[%emt 0:00:00]} 21. Ba5 {[%emt 0:00:00]} Bh6 {[%emt 0:00:00]} 22. Rxc8+ {[%emt 0:00:00]} Rxc8 {[%emt 0:00:00]} 23. Bc3 {[%emt 0:00:00]} Bc4 {[%emt 0:00:00]} 24. Bxc4 {[%emt 0:00:00]} Rxc4 {[%emt 0:00:00]} 25. Rd1 {[%emt 0:00:00]} Nb5 {[%emt 0:00:00]} 26. Rd8+ {[%emt 0:00:00]} Bf8 {[%emt 0:00:00]} 27. Bd2 {[%emt 0:00:00]} Kg7 {[%emt 0:00:00]} 28. f3 {[%emt 0:00:00]} Ba3 {[%emt 0:00:00]} 29. Rd3 {[%emt 0:00:00]} Rc2 {[%emt 0:00:00]} 30. Kf1 {[%emt 0:00:00]} Rxa2 {[%emt 0:00:00]} 31. Bc3 {[%emt 0:09:00]} Nxc3 {[%emt 0:00:00]} 32. Nxc3 {[%emt 0:00:00]} Rc2 {[%emt 0:00:00]} 33. Ne2 {[%emt 0:00:00]} Bb4 {[%emt 0:00:00]} 34. Rd5 {[%emt 0:00:00]} Kf6 {[%emt 0:00:00]} 35. g4 {[%emt 0:00:00]} a5 {[%emt 0:00:00]} 36. Rb5 {[%emt 0:00:00]} Rb2 {[%emt 0:00:00]} 37. f4 {[%emt 0:00:00]} a4 {[%emt 0:00:00]} 38. g5+ {[%emt 0:00:00]} Kg7 {[%emt 0:01:24]} 39. f5 {[%emt 0:00:00]} gxf5 {[%emt 0:00:04]} 40. exf5 {[%emt 0:00:00]} a3 {[%emt 0:00:57]} 41. Ng3 {[%emt 0:00:00]} a2 {[%emt 0:01:23]} 42. Nh5+ {[%emt 0:00:00]} Kf8 {[%emt 0:10:42]} 0-1

[Event "Valenciana Championship 2022"]
[Site "Alcossebre"]
[Date "2022.06.14"]
[Round "4.4"]
[White "Jordan Martinez, David"]
[Black "Valmana Canto, Jaime"]
[Result "0-1"]
[ECO "C07"]
[WhiteElo "2154"]
[BlackElo "2392"]
[Annotator "RC"]
[PlyCount "80"]
[EventDate "2022.06.13"]
[EventType "tourn"]
[EventCountry "ESP"]
[SourceTitle "playchess.com"]
[Source "ChessBase"]
[SourceQuality "1"]
[TimeControl "5400+30"]

1. e4 {[%emt 0:00:01]} e6 {[%emt 0:05:46]} 2. d4 {[%emt 0:00:21]} d5 {[%emt 0:00:07]} 3. Nd2 {[%emt 0:00:20]} c5 {[%emt 0:00:54]} 4. exd5 {[%emt 0:01:19]} Qxd5 {[%emt 0:00:08]} 5. Ngf3 {[%emt 0:00:17]} cxd4 {[%emt 0:00:08]} 6. Bc4 {[%emt 0:00:45]} Qd7 {[%emt 0:00:08]} 7. O-O {[%emt 0:03:21]} Nc6 {[%emt 0:00:07]} 8. Nb3 {[%emt 0:01:25]} Nf6 {[%emt 0:00:12]} 9. Qe2 {[%emt 0:03:49]} a6 {[%emt 0:00:08]} 10. a4 {[%emt 0:00:23]} Bd6 {[%emt 0:00:32]} 11. Rd1 {[%emt 0:02:22]} O-O {[%emt 0:00:09]} 12. Nbxd4 {[%emt 0:00:58]} e5 {[%emt 0:00:08]} 13. Nxc6 {[%emt 0:17:35]} Qxc6 {[%emt 0:00:09]} 14. Bg5 {[%emt 0:05:10]} Bc7 {[%emt 0:00:07]} 15. Bxf6 {[%emt 0:16:35]} Qxf6 {[%emt 0:00:09]} 16. Nd2 {[%emt 0:02:11]} Qg6 {[%emt 0:08:11]} 17. Bb3 {[%emt 0:05:05]} Kh8 {[%emt 0:01:20]} 18. Nc4 {[%emt 0:09:53]} Bh3 {[%emt 0:02:31]} 19. Qf1 {[%emt 0:03:04]} e4 {[%emt 0:08:03]} 20. Rd4 {[%emt 0:09:22]} b5 {[%emt 0:24:09]} 21. axb5 {[%emt 0:00:21]} axb5 {[%emt 0:00:02]} 22. Rxa8 {[%emt 0:00:01]} Rxa8 {[%emt 0:00:06]} 23. Ne3 {[%emt 0:00:50]} f5 {[%emt 0:00:38]} 24. Rd1 {[%emt 0:05:49]} f4 {[%emt 0:08:09]} 25. Kh1 {[%emt 0:00:17]} fxe3 {[%emt 0:01:17]} 26. gxh3 {[%emt 0:00:02]} Rf8 {[%emt 0:00:25]} 27. Qg1 {[%emt 0:04:33]} exf2 {[%emt 0:00:52]} 28. Qxg6 {[%emt 0:00:20]} hxg6 {[%emt 0:00:02]} 29. Kg2 {[%emt 0:00:17]} e3 {[%emt 0:00:02]} 30. Kf1 {[%emt 0:00:18]} Rf5 {[%emt 0:01:14]} 31. Be6 {[%emt 0:05:04]} e2+ {[%emt 0:00:17]} 32. Kxe2 {[%emt 0:00:32]} Re5+ {[%emt 0:00:06]} 33. Kxf2 {[%emt 0:00:02]} Rxe6 {[%emt 0:00:09]} 34. Rd5 {[%emt 0:00:24]} Re5 {[%emt 0:00:34]} 35. Rd3 {[%emt 0:01:26]} Kh7 {[%emt 0:02:02]} 36. c3 {[%emt 0:00:15]} Kh6 {[%emt 0:00:31]} 37. b3 {[%emt 0:00:03]} Rc5 {[%emt 0:01:33]} 38. Ke3 {[%emt 0:00:14]} Be5 {[%emt 0:00:09]} 39. c4 {[%emt 0:00:19]} bxc4 {[%emt 0:00:12]} 40. bxc4 {[%emt 0:00:01]} Rxc4 {[%emt 0:00:14]} 0-1